bitfinex/quotes_SOLUSD_20241216
["timestamp","ask_amount","ask_price","bid_price","bid_amount"]
[1734363498187,22.42969724,216.85,216.76,23.776884]
[1734363498481,2.0607,216.88,216.76,23.776884]
[1734363498482,22.42969724,216.86,216.76,23.776884]
[1734363499363,22.92969724,216.85,216.76,23.776884]
[1734363499973,22.42969724,216.83,216.76,23.776884]
[1734363500502,22.42969724,216.82,216.76,23.776884]
[1734363500800,22.42969724,216.83,216.76,23.776884]
[1734363501001,0.5,216.82,216.76,23.776884]
[1734363501185,22.92969724,216.82,216.76,23.776884]
[1734363501497,2.0607,216.88,216.76,23.776884]
[1734363501701,22.42969724,216.84,216.76,23.776884]
[1734363502199,22.42969724,216.86,216.76,23.776884]
[1734363502387,22.42969724,216.84,216.76,23.776884]
[1734363502774,22.42969724,216.83,216.76,23.776884]
[1734363503770,22.42969724,216.84,216.76,23.776884]
[1734363504192,2.0607,216.88,216.76,23.776884]
[1734363504193,22.92969724,216.83,216.76,23.776884]
[1734363504788,22.42969724,216.82,216.76,23.776884]
[1734363504985,22.42969724,216.81,216.72,20.0]
[1734363505180,22.42969724,216.81,216.74,23.776884]
[1734363505500,22.92969724,216.8,216.69,6.1776]
[1734363506096,22.92969724,216.8,216.7,23.776884]
[1734363507807,22.42969724,216.8,216.7,23.776884]
[1734363508011,0.5,216.79,216.7,23.776884]
[1734363508190,22.42969724,216.77,216.7,23.776884]
[1734363508394,22.42969724,216.77,216.69,6.1776]
[1734363508704,22.42969724,216.81,216.7,24.46889664]
[1734363508883,22.42969724,216.82,216.7,24.46889664]
[1734363509911,22.42969724,216.82,216.7,161.16889664]
[1734363510221,22.42969724,216.83,216.7,160.476884]
[1734363510427,22.42969724,216.83,216.71,0.69184926]
[1734363510586,22.42969724,216.85,216.72,23.776884]
[1734363510786,22.42969724,216.87,216.76,23.776884]
[1734363511093,22.42969724,216.87,216.76,24.46862117]
[1734363511480,22.92969724,216.86,216.76,24.46862117]
[1734363511683,22.42969724,216.86,216.76,24.46862117]
[1734363513302,23.99039724,216.88,216.76,161.16862117]
[1734363513613,20.0,216.87,216.78,23.776884]
[1734363513925,20.0,216.87,216.8,23.776884]
[1734363514520,22.42969724,216.89,216.8,23.776884]
[1734363514728,22.42969724,216.89,216.78,0.69165363]
[1734363515243,2.0644,216.93,216.81,43.776884]
[1734363515386,22.42969724,216.93,216.83,23.776884]
[1734363515591,22.42969724,216.93,216.84,0.69151411]
[1734363515987,22.42969724,216.91,216.82,23.776884]
[1734363516196,0.5,216.95,216.81,156.7]
[1734363516197,22.92969724,216.9,216.81,156.7]
[1734363516406,22.42969724,216.91,216.81,156.7]
[1734363516612,22.42969724,216.9,216.81,156.7]
[1734363517098,22.42969724,216.92,216.8,20.0]
[1734363517301,22.42969724,216.88,216.77,6.1706]
[1734363517527,22.42969724,216.84,216.77,6.1706]
[1734363517719,22.42969724,216.85,216.77,6.1706]
[1734363517927,20.0,216.89,216.77,6.1706]
[1734363517928,22.92969724,216.84,216.77,6.1706]
[1734363518230,22.42969724,216.84,216.77,6.1706]
[1734363518433,22.42969724,216.8,216.7,6.0562]
[1734363519305,22.42969724,216.8,216.7,6.74811351]
[1734363519601,22.42969724,216.8,216.71,23.776884]
[1734363520427,14.02269514,216.8,216.71,23.776884]
[1734363520742,14.02269514,216.79,216.7,6.0562]
[1734363520899,14.02269514,216.76,216.7,6.0562]
[1734363521936,14.02269514,216.75,216.65,7.05676992]
[1734363522102,14.02269514,216.71,216.65,6.3647]
[1734363522305,14.02269514,216.7,216.65,6.3647]
[1734363523703,14.02269514,216.69,216.6,30.367384]
[1734363524005,22.45965839,216.69,216.6,30.367384]
[1734363524417,22.45965839,216.7,216.6,30.367384]
[1734363525217,22.45965839,216.69,216.6,30.367384]
[1734363525420,22.45965839,216.71,216.6,30.367384]
[1734363525608,0.5,216.7,216.6,30.367384]
[1734363526019,22.45965839,216.71,216.6,30.367384]
[1734363526404,22.45965839,216.7,216.6,30.367384]
[1734363526922,22.45965839,216.71,216.6,30.367384]
[1734363527533,0.5,216.76,216.62,23.776884]
[1734363527699,22.45965839,216.77,216.64,23.776884]
[1734363527900,22.45965839,216.75,216.62,136.7]
[1734363528103,22.45965839,216.73,216.62,137.54413785]
[1734363528299,0.5,216.74,216.62,137.54413785]
[1734363528300,22.45965839,216.74,216.62,137.54413785]
[1734363528602,22.45965839,216.75,216.63,0.69216951]
[1734363528820,0.5,216.74,216.62,137.54413785]
[1734363529017,22.45965839,216.76,216.63,0.6921548]
[1734363529219,0.5,216.75,216.63,0.6921548]
[1734363529411,22.95965839,216.75,216.63,0.6921548]
[1734363529609,22.45965839,216.73,216.62,137.54413785]
[1734363529804,22.95965839,216.72,216.62,0.84413785]
[1734363530014,22.95965839,216.72,216.6,6.5905]
[1734363530427,22.45965839,216.73,216.6,6.5905]
[1734363530731,22.95965839,216.72,216.6,6.5905]
[1734363530912,22.45965839,216.73,216.6,6.5905]
[1734363531346,22.95965839,216.72,216.6,6.5905]
[1734363531935,22.45965839,216.71,216.6,6.5905]
[1734363532531,0.5,216.7,216.6,6.5905]
[1734363533545,22.95965839,216.7,216.6,6.5905]
[1734363535310,0.5,216.7,216.6,6.5905]
[1734363535517,46.73654239,216.71,216.6,6.5905]
[1734363535720,0.5,216.7,216.6,6.5905]
[1734363535916,22.95965839,216.7,216.6,6.5905]
[1734363536113,23.776884,216.69,216.6,6.5905]
[1734363536318,0.5,216.68,216.6,6.5905]
[1734363536838,22.45965839,216.67,216.6,6.5905]
[1734363537033,0.5,216.68,216.6,6.5905]
[1734363537222,23.776884,216.7,216.6,6.5905]
[1734363537409,24.276884,216.7,216.6,6.5905]
[1734363538047,0.5,216.7,216.6,6.5905]
[1734363538230,24.276884,216.72,216.61,0.69228404]
[1734363538433,0.5,216.72,216.61,0.69228404]
[1734363538647,22.45965839,216.73,216.61,0.69228404]
[1734363538926,0.5,216.72,216.61,0.69228404]
[1734363539126,22.45965839,216.73,216.61,0.69228404]
[1734363539330,0.5,216.72,216.61,0.69228404]
[1734363539534,3.4810069,216.79,216.61,0.69228404]
[1734363539535,23.776884,216.74,216.61,0.69228404]
[1734363539862,22.95965839,216.73,216.61,0.69228404]
[1734363541269,23.776884,216.75,216.63,20.0]
[1734363541428,22.45965839,216.77,216.63,20.69213329]
[1734363541635,20.0,216.75,216.63,157.39213329]
[1734363541849,0.5,216.74,216.63,156.7]
[1734363542030,20.5,216.75,216.63,156.7]
[1734363542756,0.5,216.75,216.63,156.7]
[1734363542930,23.776884,216.76,216.64,0.69212039]
[1734363543133,46.73654239,216.76,216.64,0.69212039]
[1734363543361,0.5,216.76,216.64,0.69212039]
[1734363543564,24.276884,216.76,216.64,0.69212039]
[1734363544030,20.0,216.73,216.64,0.69212039]
[1734363544757,0.5,216.72,216.63,136.7]
[1734363544946,0.5,216.72,216.6,143.2905]
[1734363545364,20.0,216.66,216.6,6.5905]
[1734363545663,14.02735724,216.68,216.6,6.5905]
[1734363546177,14.02735724,216.69,216.6,6.5905]
[1734363546467,0.5,216.68,216.6,6.5905]
[1734363546678,14.52735724,216.68,216.6,6.5905]
[1734363547543,14.02735724,216.7,216.6,6.5905]
[1734363547760,20.0,216.67,216.6,6.5905]
[1734363548555,20.0,216.65,216.6,6.5905]
[1734363549450,20.0,216.66,216.6,6.5905]
[1734363549651,20.0,216.65,216.6,6.5905]
[1734363550072,0.5,216.67,216.6,6.5905]
[1734363550250,0.5,216.67,216.54,137.3924311]
[1734363550251,14.02735724,216.66,216.54,137.3924311]
[1734363550440,0.5,216.65,216.54,136.7]
[1734363551185,0.5,216.66,216.54,136.7]
[1734363554043,14.02735724,216.64,216.54,136.7]
[1734363554245,24.276884,216.66,216.54,136.7]
[1734363554246,14.52735724,216.63,216.54,136.7]
[1734363555241,14.02735724,216.61,216.51,6.0299]
[1734363555455,0.5,216.6,216.51,6.0299]
[1734363555650,14.52735724,216.6,216.51,6.0299]
[1734363556070,0.5,216.6,216.51,6.0299]
[1734363557285,0.5,216.65,216.52,0.69261132]
[1734363557480,38.30424124,216.65,216.52,0.69261132]
[1734363558552,14.02735724,216.64,216.52,0.69261132]
[1734363558772,0.5,216.63,216.52,0.69261132]
[1734363559784,14.52735724,216.65,216.52,0.69261132]
[1734363559948,0.5,216.63,216.52,0.69261132]
[1734363560756,24.276884,216.64,216.52,0.69261132]
[1734363561577,23.776884,216.66,216.54,20.0]
[1734363561783,16.03295724,216.67,216.54,20.0]
[1734363561784,2.0056,216.67,216.55,0.6924108]
[1734363562084,16.03295724,216.67,216.55,0.6924108]
[1734363562245,16.03295724,216.67,216.54,20.0]
[1734363562450,16.03295724,216.67,216.54,156.7]
[1734363562869,37.80424124,216.66,216.54,156.7]
[1734363563094,14.02735724,216.64,216.54,156.7]
[1734363563396,14.52735724,216.65,216.54,156.7]
[1734363564182,14.02735724,216.64,216.54,156.7]
[1734363564391,0.5,216.63,216.54,156.7]
[1734363565062,14.52735724,216.65,216.54,156.7]
[1734363565586,14.02735724,216.64,216.54,20.0]
[1734363565767,0.5,216.63,216.54,20.0]
[1734363566177,14.02735724,216.64,216.54,20.0]
[1734363566361,0.5,216.65,216.54,20.0]
[1734363568396,0.5,216.65,216.55,20.0]
[1734363568569,14.52735724,216.65,216.55,20.0]
[1734363568960,0.5,216.65,216.55,20.0]
[1734363569351,14.52735724,216.65,216.55,20.0]
[1734363569560,0.5,216.65,216.55,20.0]
[1734363570090,14.02735724,216.63,216.52,136.7]
[1734363570269,0.5,216.62,216.52,136.7]
[1734363570470,37.80424124,216.61,216.51,6.0299]
[1734363570699,14.52735724,216.6,216.51,6.0299]
[1734363570992,14.02735724,216.59,216.51,6.0299]
[1734363571202,14.02735724,216.61,216.51,6.0299]
[1734363571358,14.02735724,216.63,216.52,0.69263195]
[1734363571559,14.02735724,216.63,216.42,5.05716872]
[1734363571560,37.80424124,216.53,216.38,6.3234]
[1734363571771,14.02735724,216.48,216.4,0.84499603]
[1734363571954,14.02735724,216.49,216.4,0.84499603]
[1734363572159,0.5,216.48,216.4,0.84499603]
[1734363572380,0.5,216.48,216.38,6.3234]
[1734363572895,0.5,216.49,216.38,6.3234]
[1734363573066,0.5,216.5,216.38,6.3234]
[1734363573392,0.5,216.5,216.39,0.69294205]
[1734363573596,0.5,216.5,216.39,137.39294205]
[1734363573897,0.5,216.52,216.39,136.7]
[1734363574266,14.02735724,216.49,216.39,136.7]
[1734363574468,1.5765,216.56,216.38,6.3234]
[1734363574469,24.276884,216.48,216.38,6.3234]
[1734363575058,14.02735724,216.47,216.38,6.3234]
[1734363575278,24.276884,216.48,216.33,6.5608]
[1734363575279,14.02735724,216.45,216.33,6.5608]
[1734363575613,37.80424124,216.44,216.33,6.5608]
[1734363576182,37.80424124,216.45,216.33,6.5608]
[1734363576681,1.5672,216.46,216.33,6.5608]
[1734363576903,23.776884,216.47,216.33,6.5608]
[1734363577111,14.02735724,216.49,216.36,20.0]
[1734363577411,20.0,216.49,216.36,20.0]
[1734363577624,20.0,216.5,216.36,156.7]
[1734363577913,1.6313,216.51,216.36,156.7]
[1734363578311,0.5,216.5,216.36,156.7]
[1734363578617,0.5,216.5,216.37,0.69300448]
[1734363579121,0.5,216.5,216.37,137.39300448]
[1734363579409,0.5,216.52,216.4,20.0]
[1734363579590,13.27726034,216.54,216.41,0.69290546]
[1734363580207,14.02735724,216.52,216.37,136.7]
[1734363580384,20.0,216.47,216.33,145.09692007]
[1734363580714,20.0,216.47,216.34,0.69304467]
[1734363583425,20.0,216.45,216.34,137.39304467]
[1734363583725,20.0,216.45,216.34,136.7]
[1734363583943,20.0,216.45,216.35,0.6930563]
[1734363584838,20.0,216.4,216.27,136.7]
[1734363584997,20.0,216.39,216.28,3.41288549]
[1734363585198,20.0,216.4,216.28,140.11288549]
[1734363585402,20.0,216.4,216.28,139.41964944]
[1734363585603,20.0,216.41,216.29,0.69311891]
[1734363585823,20.0,216.41,216.3,6.2024]
[1734363586010,20.0,216.41,216.31,0.69313076]
[1734363586538,15.69265724,216.44,216.31,0.69313076]
[1734363586743,14.02735724,216.41,216.31,0.69313076]
[1734363586908,14.02735724,216.4,216.3,6.2024]
[1734363588218,14.02735724,216.39,216.3,6.2024]
[1734363588929,14.02735724,216.4,216.3,6.2024]
[1734363589134,14.02735724,216.41,216.3,6.2024]
[1734363589531,23.776884,216.42,216.3,6.2024]
[1734363589532,14.02735724,216.38,216.3,6.2024]
[1734363589716,14.02735724,216.37,216.23,20.0]
[1734363589914,14.02735724,216.37,216.26,20.0]
[1734363590134,14.02735724,216.37,216.24,136.7]
[1734363591337,34.02735724,216.39,216.25,0.69336939]
[1734363591544,14.02735724,216.41,216.27,20.0]
[1734363591838,14.02735724,216.43,216.29,6.4232]
[1734363592048,14.02735724,216.43,216.3,0.69321917]
[1734363592843,15.69265724,216.44,216.3,137.39321917]
[1734363593031,1.6653,216.44,216.3,136.7]
[1734363593343,15.69265724,216.44,216.3,136.7]
[1734363594119,15.69265724,216.44,216.31,0.69316173]
[1734363594941,14.02735724,216.43,216.31,0.69316173]
[1734363595531,15.69265724,216.44,216.31,0.69316173]
[1734363597520,14.02735724,216.44,216.31,0.69316173]
[1734363597740,14.02735724,216.45,216.33,20.0]
[1734363598046,18.453338,216.46,216.34,137.39304317]
[1734363598239,18.453338,216.46,216.34,136.7]
[1734363599333,20.0,216.46,216.35,6.84529765]
[1734363601425,20.0,216.46,216.35,143.54529765]
[1734363601619,20.0,216.46,216.35,142.8523]
[1734363601942,20.0,216.46,216.36,0.69300073]
[1734363604648,20.0,216.46,216.36,137.39300073]
[1734363604850,20.0,216.46,216.36,136.7]
[1734363607065,14.02735724,216.44,216.36,136.7]
[1734363607244,14.02735724,216.43,216.36,136.7]
[1734363607442,14.02735724,216.43,216.35,6.1523]
[1734363607757,14.02735724,216.39,216.31,0.84534761]
[1734363607932,1.5772,216.44,216.3,6.4518]
[1734363607933,14.02735724,216.38,216.3,6.4518]
[1734363608556,14.02735724,216.41,216.3,6.4518]
[1734363608742,37.80424124,216.43,216.3,6.4518]
[1734363608979,14.02735724,216.42,216.3,6.4518]
[1734363609149,14.02735724,216.41,216.3,6.4518]
[1734363609740,14.02735724,216.42,216.3,6.4518]
[1734363610137,14.02735724,216.41,216.3,6.4518]
[1734363610657,14.02735724,216.42,216.3,6.4518]
[1734363611737,14.02735724,216.42,216.31,0.69321833]
[1734363611938,15.60455724,216.44,216.31,0.69321833]
[1734363612161,14.02735724,216.45,216.31,0.69321833]
[1734363613464,14.02735724,216.44,216.31,137.39321833]
[1734363613667,14.02735724,216.44,216.31,136.7]
[1734363614037,20.0,216.44,216.31,136.7]
[1734363614345,18.45049,216.48,216.32,24.62219253]
[1734363614550,32.47784724,216.48,216.33,0.69304014]
[1734363615135,14.02735724,216.47,216.33,0.69304014]
[1734363616162,14.02735724,216.47,216.33,2.58028921]
[1734363616368,14.02735724,216.47,216.33,0.69304014]
[1734363616564,14.02735724,216.46,216.34,20.0]
[1734363616734,14.02735724,216.45,216.34,20.0]
[1734363617744,14.02735724,216.46,216.34,20.0]
[1734363619566,32.47784724,216.48,216.35,0.69313193]
[1734363619769,18.45049,216.48,216.35,137.39313193]
[1734363620076,32.47784724,216.48,216.35,136.7]
[1734363620656,18.45049,216.48,216.35,136.7]
[1734363621057,18.45049,216.48,216.36,0.69299336]
[1734363621271,32.47784724,216.48,216.36,0.69299336]
[1734363621498,14.02735724,216.47,216.35,136.7]
[1734363621780,18.45049,216.48,216.36,0.69312591]
[1734363625598,18.45049,216.48,216.36,137.39312591]
[1734363625761,18.45049,216.48,216.36,136.7]
[1734363625964,18.45049,216.48,216.37,0.69299075]
[1734363629552,15.66085724,216.54,216.38,143.0104]
[1734363629767,14.02735724,216.56,216.42,20.0]
[1734363630061,18.445205,216.55,216.43,0.69281232]
[1734363630389,14.02735724,216.53,216.42,156.7]
[1734363630602,14.02735724,216.51,216.42,136.7]
[1734363630763,14.02735724,216.5,216.38,143.85547414]
[1734363631259,14.02735724,216.52,216.39,0.69296753]
[1734363632379,14.02735724,216.51,216.39,0.69296753]
[1734363632801,14.02735724,216.52,216.39,0.69296753]
[1734363635323,34.02735724,216.51,216.39,0.69296753]
[1734363636283,20.0,216.51,216.39,0.69296753]
[1734363637270,34.02735724,216.51,216.39,0.69296753]
[1734363638099,28.99895491,216.51,216.39,0.69296753]
[1734363638303,20.0,216.51,216.39,0.69296753]
[1734363638675,27.44415991,216.55,216.41,20.0]
[1734363638873,27.44415991,216.55,216.42,0.69284424]
[1734363639116,8.99895491,216.54,216.42,0.69284424]
[1734363639316,8.99895491,216.54,216.41,20.0]
[1734363639529,8.99895491,216.43,216.38,7.15547414]
[1734363639794,7.7664,216.53,216.32,136.7]
[1734363640017,23.776884,216.49,216.33,0.69312433]
[1734363640432,7.7664,216.53,216.33,0.69312433]
[1734363640598,14.06304023,216.49,216.33,0.69312433]
[1734363641098,23.776884,216.49,216.35,20.0]
[1734363641299,23.776884,216.49,216.36,0.69303268]
[1734363642138,37.83992423,216.49,216.35,20.0]
[1734363642548,37.83992423,216.49,216.35,156.7]
[1734363642901,23.776884,216.49,216.35,156.7]
[1734363643738,37.83992423,216.49,216.35,156.7]
[1734363645612,23.776884,216.49,216.36,0.69305246]
[1734363647608,20.0,216.46,216.36,0.69305246]
[1734363648139,20.0,216.44,216.35,136.7]
[1734363649604,20.0,216.44,216.32,138.51330104]
[1734363649831,20.0,216.44,216.32,136.7]
[1734363650820,20.0,216.46,216.33,0.69314882]
[1734363651247,23.776884,216.49,216.35,20.0]
[1734363651427,14.06304023,216.49,216.36,0.69302071]
[1734363651747,1.6405,216.53,216.37,6.5775]
[1734363651911,14.06304023,216.57,216.39,23.776884]
[1734363652116,32.50824523,216.58,216.4,0.69287042]
[1734363652319,14.06304023,216.58,216.41,23.776884]
[1734363652645,14.06304023,216.58,216.42,0.69278715]
[1734363654045,23.776884,216.57,216.42,0.69278715]
[1734363654830,20.0,216.54,216.42,0.69278715]
[1734363655637,20.0,216.54,216.42,137.39278715]
[1734363655841,20.0,216.54,216.42,136.7]
[1734363656041,34.06304023,216.54,216.42,136.7]
[1734363656540,20.0,216.54,216.42,136.7]
[1734363657047,37.83992423,216.53,216.4,20.0]
[1734363657919,14.06304023,216.52,216.4,20.0]
[1734363658734,20.0,216.49,216.37,143.2775]
[1734363659457,20.0,216.5,216.38,0.69297052]
[1734363659958,14.06304023,216.54,216.39,23.776884]
[1734363659959,20.0,216.54,216.39,23.776884]
[1734363660155,20.0,216.52,216.4,0.69285245]
[1734363661150,20.0,216.54,216.41,23.776884]
[1734363661455,20.0,216.54,216.42,0.69281174]
[1734363661681,20.0,216.56,216.42,0.69281174]
[1734363661879,20.0,216.56,216.43,6.5904]
[1734363662070,20.0,216.56,216.44,0.69276172]
[1734363662274,1.5197,216.59,216.44,0.69276172]
[1734363662592,6.0188,216.63,216.45,23.776884]
[1734363662882,7.1788855,216.68,216.49,30.038784]
[1734363663177,1.5666,216.69,216.51,23.776884]
[1734363663358,18.437876,216.69,216.53,23.776884]
[1734363663682,14.06304023,216.71,216.54,0.6924225]
[1734363663860,14.06304023,216.7,216.54,0.6924225]
[1734363664547,20.0,216.68,216.55,23.776884]
[1734363664751,14.06304023,216.72,216.56,0.69236658]
[1734363665065,1.5666,216.74,216.56,137.39236658]
[1734363665260,1.5666,216.74,216.58,23.776884]
[1734363665464,14.06304023,216.76,216.59,0.69224176]
[1734363665780,14.06304023,216.77,216.61,20.0]
[1734363666075,14.06304023,216.78,216.62,0.69216621]
[1734363666281,14.06304023,216.77,216.62,0.69216621]
[1734363667163,14.06304023,216.76,216.62,0.69216621]
[1734363669393,23.776884,216.78,216.62,0.69216621]
[1734363669394,34.06304023,216.75,216.62,0.69216621]
[1734363669985,14.06304023,216.73,216.62,0.69216621]
[1734363670185,14.06304023,216.72,216.57,143.2202]
[1734363670484,14.06304023,216.72,216.58,0.69231561]
[1734363670797,14.06304023,216.73,216.58,0.69231561]
[1734363670992,14.06304023,216.72,216.58,0.69231561]
[1734363671706,23.776884,216.72,216.6,20.0]
[1734363672101,14.06304023,216.72,216.6,20.0]
[1734363672622,14.06304023,216.68,216.57,6.5202]
[1734363672927,37.83992423,216.67,216.57,6.5202]
[1734363673329,14.06304023,216.69,216.57,6.5202]
[1734363673809,6.1477,216.74,216.57,6.5202]
[1734363673810,14.06304023,216.68,216.57,6.5202]
[1734363674927,37.83992423,216.67,216.57,6.5202]
[1734363675135,14.06304023,216.67,216.57,6.5202]
[1734363675633,34.06304023,216.7,216.57,6.5202]
[1734363675828,37.83992423,216.73,216.58,0.69238627]
[1734363676040,14.06304023,216.72,216.58,0.69238627]
[1734363676344,14.06304023,216.77,216.61,20.0]
[1734363676508,14.06304023,216.78,216.62,0.69218441]
[1734363677300,14.06304023,216.78,216.62,137.39218441]
[1734363677521,6.2951,216.85,216.62,136.7]
[1734363677522,14.06304023,216.74,216.62,136.7]
[1734363677710,14.06304023,216.81,216.62,136.7]
[1734363677711,14.06304023,216.73,216.62,136.7]
[1734363678030,14.06304023,216.74,216.62,136.7]
[1734363678243,14.06304023,216.74,216.61,20.0]
[1734363678806,20.0,216.75,216.62,0.69225871]
[1734363679220,20.0,216.73,216.62,137.39225871]
[1734363679500,20.0,216.73,216.62,136.7]
[1734363679836,14.06304023,216.76,216.62,136.7]
[1734363680331,14.06304023,216.77,216.62,136.7]
[1734363680512,20.0,216.75,216.63,7.11392475]
[1734363682227,14.06304023,216.76,216.63,7.11392475]
[1734363682429,14.06304023,216.77,216.63,7.11392475]
[1734363682738,1.5268,216.84,216.67,156.7]
[1734363682903,1.5268,216.84,216.72,6.0852]
[1734363684620,14.06304,216.9,216.76,20.0]
[1734363684817,15.70264023,216.92,216.76,20.0]
[1734363685205,14.06304023,216.91,216.76,20.0]
[1734363685433,14.06304023,216.87,216.73,141.87768414]
[1734363685636,14.06304023,216.86,216.73,5.17768414]
[1734363685937,14.06304023,216.87,216.73,5.17768414]
[1734363686639,20.0,216.87,216.74,0.69185278]
[1734363686819,15.70264023,216.92,216.76,20.0]
[1734363687019,14.06304023,216.9,216.76,20.0]
[1734363687539,14.06304023,216.91,216.76,20.0]
[1734363688129,14.06304023,216.9,216.76,20.0]
[1734363688771,14.06304023,216.88,216.76,136.7]
[1734363688935,14.06304023,216.88,216.73,5.17768414]
[1734363688936,14.06304023,216.85,216.72,142.7852]
[1734363689331,37.83992423,216.87,216.72,142.7852]
[1734363689530,14.06304023,216.87,216.72,142.7852]
[1734363690255,14.06304023,216.86,216.72,142.7852]
[1734363690462,14.06304023,216.84,216.72,142.7852]
[1734363690963,14.06304023,216.85,216.72,142.7852]
[1734363691560,14.06304023,216.84,216.72,142.7852]
[1734363691760,14.06304023,216.84,216.72,6.0852]
[1734363691932,37.83992423,216.83,216.72,6.0852]
[1734363692132,14.06304023,216.79,216.72,6.0852]
[1734363692556,14.06304023,216.81,216.72,6.0852]
[1734363693569,14.06304023,216.82,216.72,6.0852]
[1734363693736,14.06304023,216.83,216.72,6.0852]
[1734363694084,1.6396,216.92,216.72,143.4771631]
[1734363694252,15.70264023,216.92,216.75,20.0]
[1734363694435,14.06304023,216.91,216.76,20.69169957]
[1734363694758,14.06304023,216.89,216.76,20.69169957]
[1734363695065,14.06304023,216.9,216.76,20.69169957]
[1734363695266,14.06304023,216.91,216.76,20.69169957]
[1734363695570,14.06304023,216.89,216.76,20.69169957]
[1734363696356,1.6396,216.92,216.76,20.69169957]
[1734363696357,14.06304023,216.9,216.76,20.0]
[1734363696567,14.06304023,216.9,216.76,20.69170173]
[1734363696745,14.06304023,216.89,216.76,20.69170173]
[1734363696948,14.06304023,216.89,216.76,20.0]
[1734363697650,20.0,216.86,216.76,136.7]
[1734363698243,14.06304023,216.89,216.76,136.7]
[1734363698645,20.0,216.87,216.76,136.7]
[1734363699372,20.0,216.91,216.79,23.776884]
[1734363699664,20.0,216.91,216.8,0.69155971]
[1734363700237,20.0,216.9,216.8,0.69155971]
[1734363701663,20.0,216.89,216.78,143.1566]
[1734363701866,20.0,216.87,216.78,143.1566]
[1734363702071,14.06304023,216.88,216.78,143.1566]
[1734363703873,20.0,216.89,216.78,143.1566]
[1734363703874,14.06304023,216.89,216.78,143.1566]
[1734363704455,14.06304023,216.88,216.78,6.4566]
[1734363705057,14.06304023,216.86,216.78,6.4566]
[1734363705262,14.06304023,216.85,216.78,6.4566]
[1734363705850,14.06304023,216.83,216.73,6.5124]
[1734363706053,20.69714023,216.92,216.73,6.5124]
[1734363706054,14.06304023,216.8,216.73,6.5124]
[1734363706442,14.06304023,216.79,216.73,6.5124]
[1734363706884,14.06304023,216.8,216.73,6.5124]
[1734363707047,14.06304023,216.78,216.73,6.5124]
[1734363707249,14.06304023,216.78,216.67,6.4972]
[1734363707773,14.06304023,216.77,216.67,6.4972]
[1734363707950,1.604,216.86,216.67,6.4972]
[1734363707951,14.06304023,216.74,216.67,6.4972]
[1734363708147,14.06304023,216.73,216.67,6.4972]
[1734363708351,14.06304023,216.74,216.67,6.4972]
[1734363709262,14.06304023,216.75,216.67,6.4972]
[1734363709682,2.7170489,216.85,216.67,6.4972]
[1734363709849,34.06304023,216.77,216.67,6.4972]
[1734363710779,14.06304023,216.76,216.67,6.4972]
[1734363712275,34.06304023,216.77,216.67,6.4972]
[1734363712996,14.06304023,216.76,216.67,6.4972]
[1734363713172,14.06304023,216.75,216.67,6.4972]
[1734363714785,20.0,216.77,216.67,6.4972]
[1734363716971,14.06304023,216.78,216.67,6.4972]
[1734363717987,14.06304023,216.73,216.67,6.4972]
[1734363718190,14.06304023,216.74,216.67,6.4972]
[1734363718575,14.06304023,216.73,216.67,6.4972]
[1734363718985,23.776884,216.76,216.63,136.7]
[1734363719165,14.06304023,216.75,216.63,136.7]
[1734363720373,14.06304023,216.74,216.63,136.7]
[1734363720891,14.06304023,216.71,216.62,6.2824]
[1734363721794,14.06304023,216.72,216.62,6.2824]
[1734363722164,14.06304023,216.7,216.62,6.2824]
[1734363722369,14.06304023,216.68,216.62,6.2824]
[1734363723099,14.06304023,216.69,216.62,6.2824]
[1734363723758,42.206988,216.76,216.62,6.2824]
[1734363723960,14.06304023,216.74,216.62,6.2824]
[1734363724158,14.06304023,216.76,216.62,11.80042681]
[1734363724364,14.06304023,216.76,216.63,10.69571095]
[1734363726506,20.0,216.74,216.64,23.776884]